Cogmind - Beta 14 @@@ ROGUE MODE // 2024.10.11 @ 16:17:44 Player: saltine Result: Destroyed by Autobeam Turret with Autobeam Performance ------------- Evolutions (0) 0 Regions Visited (3) 600 Robots Destroyed (36) 180 Value Destroyed (593) 593 Prototype IDs (4) 80 Alien Tech Used (0) 0 Bonus (-11) -11 TOTAL SCORE: 1442 Bonus ------- Friendly Fire -11 Cogmind --------- Core Integrity 0/250 Matter 300/300 Energy 240/250 System Corruption 6% Temperature Cool (21) Movement Rolling (95) Ox1 Location -10/Subcaves Parts ------- > --- POWER (1) -------- Ion Engine > --- PROPULSION (2) --- Wheel > --- UTILITY (2) ------ Small Storage Unit > --- WEAPON (2) ------- Medium Laser Subdweller Beam Cannon > --- INVENTORY (8) ---- Subdweller Power Source Subdweller Monowheel Improved Terrain Scanner Rocket Launcher Dirty Datajack (20) Mining Laser Scrap Shield Fragment (43) Peak State ------------ > --- POWER ------------ Light Nuclear Core > --- PROPULSION ------- Light Treads Light Treads > --- UTILITY ---------- Small Storage Unit Improved Terrain Scanner > --- WEAPON ----------- Medium Laser Light Assault Rifle > --- INVENTORY -------- Ion Engine Light Treads Wheel Light Armor Plating Light Cannon Rocket Launcher Mining Laser [Rating: 11] Favorites ----------- Power Ion Engine Engine Ion Engine Power Core Light Nuclear Core Propulsion Light Treads Treads Light Treads Leg Aluminum Leg Wheel Wheel Utility Small Storage Unit Device Seismic Detector Storage Small Storage Unit Protection Light Armor Plating Weapon Medium Laser Energy Gun Medium Laser Energy Cannon Subdweller Beam Cannon Ballistic Gun Light Assault Rifle Ballistic Cannon Light Cannon Special Weapon Mining Laser Build | -11 -10 -10 -10 ------- Run | Yrd Mat Min Sub Slots Evolved . | . . . . Power . | . . . . Propulsion . | . . . . Utility . | . . . . Weapon . | . . . . Parts Attached 21 | 3 7 4 7 Power 2 | . . 1 1 Engine 1 | . . . 1 Core 1 | . . 1 . Reactor . | . . . . Propulsion 4 | 2 . . 2 Treads 3 | 2 . . 1 Leg . | . . . . Wheel 1 | . . . 1 Hover . | . . . . Flight . | . . . . Utility 6 | 1 1 3 1 Device 3 | 1 . 2 . Storage . | . . . . Processor . | . . . . Hackware . | . . . . Protection 3 | . 1 1 1 Artifact . | . . . . Weapon 9 | . 6 . 3 Energy Gun 4 | . 3 . 1 Energy Cannon 1 | . . . 1 Ballistic Gun 1 | . 1 . . Ballistic Cannon 1 | . . . 1 Launcher . | . . . . Special Weapon 2 | . 2 . . Impact Weapon . | . . . . Slashing Weapon . | . . . . Piercing Weapon . | . . . . Special Melee Weapon . | . . . . Unidentified Prototypes . | . . . . Corrupted Parts 1 | . . . 1 System Corruption 5 | . . . 5 Parts Lost 8 | . . 1 7 Power 1 | . . . 1 Propulsion 3 | . . . 3 Utility 2 | . . 1 1 Weapon 2 | . . . 2 Highest Loss Streak 6 | . . 1 6 To Critical Strikes . | . . . . Average Slot Usage (%) 96 | . 100 100 81 Engine 11 | . 14 8 7 Core 2 | . . 5 5 Treads 26 | . 28 28 19 Device 5 | . 5 5 3 Storage 14 | . 14 14 14 Protection 7 | . 8 8 2 Energy Gun 15 | . 18 14 11 Energy Cannon 1 | . . . 8 Ballistic Gun 8 | . 7 14 5 Special Weapon 1 | . 2 . . Peak Build Rating 11 | 8 8 11 11 Average Rating 8 | 6 7 9 7 On Entrance 8 | 6 8 8 11 Naked Turns . | . . . . Heaviest Build 20 | 15 17 16 20 Greatest Support 40 | 40 40 40 40 Greatest Overweight (x) 1 | . . . 1 Average Overweight (x) . | . . . . Largest Inventory Capacity 8 | 8 8 8 8 Average Capacity 8 | 8 8 8 8 Most Carried 8 | 8 8 8 8 Average Carried 7 | 6 7 7 5 Final Capacity 8 | 8 8 8 8 Final Carried 8 | 8 8 7 7 Class Distribution -------------------- 100% | Mutant Dominant Class ---------------- Mutant | -10/Materials Mutant | -10/Mines Mutant | -10/Subcaves Resources | -11 -10 -10 -10 ----------- Run | Yrd Mat Min Sub Matter Collected 537 | 230 88 85 134 Remotely . | . . . . Salvage Created 867 | 93 304 249 221 Parts 70 | 7 26 23 14 Haulers Intercepted 2 | . 2 . . Recyclers Shooed 3 | 1 1 1 . Parts Field Recycled . | . . . . Retrieved Matter . | . . . . Parts Self-Destructed 13 | . . . 13 Prevented . | . . . . Kills | -11 -10 -10 -10 ------- Run | Yrd Mat Min Sub Combat Hostiles Destroyed 28 | . 9 12 7 Guns 22 | . 8 12 2 Cannons 4 | . . . 4 AOE 1 | . 1 . . Classes Destroyed 8 | 2 4 1 1 Tunneler 2 | 2 . . . Hauler 2 | . 2 . . Recycler 1 | 1 . . . Operator 1 | . 1 . . Watcher 2 | . 2 . . Swarmer 21 | . 9 10 2 Grunt 2 | . . 2 . Subdweller 5 | . . . 5 Best Kill Streak 6 | 2 6 3 2 Combat Bots Only 6 | . 6 3 2 Max Kills in Single Turn 1 | 1 1 1 1 Gunslinging . | . . . . Exploded 1 | . 1 . . Melee . | . . . . Uniques/NPCs Destroyed . | . . . . Combat | -11 -10 -10 -10 -------- Run | Yrd Mat Min Sub Hostile Shots Fired 165 | . 31 54 80 Missed 60 | . 14 15 31 Damage Taken 1413 | . 191 370 852 Core 255 | . 7 58 190 Absorbed by Shields . | . . . . Core Remaining (%) 100 | 100 . . . Volleys Fired 117 | 7 46 30 34 Largest 2 | 2 2 2 2 Hottest 130 | 90 100 70 130 Shots Fired 221 | 14 85 63 59 Gun 180 | 14 76 63 27 Cannon 32 | . . . 32 Launcher . | . . . . Special 9 | . 9 . . Kinetic 70 | . 6 33 31 Thermal 113 | 7 48 30 28 Explosive . | . . . . Electromagnetic 38 | 7 31 . . Robot Hit Streak 8 | 3 7 8 8 Robot Miss Streak 5 | 3 5 5 3 Penetration Max . | . . . . Secondary Targets 3 | . 2 1 . Max Gunslinging Chain 1 | . 1 1 . Shots Hit Robots 119 | 7 40 34 38 Core Hits 54 | 3 20 19 12 Critical Kills 1 | . . . 1 Critical Parts Destroyed . | . . . . Critical Strikes 7 | . 2 3 2 Burn 5 | . 2 3 . Meltdown 1 | . . . 1 Blast 1 | . . . 1 Melee Attacks . | . . . . Impact . | . . . . Slashing . | . . . . Piercing . | . . . . Sneak Attacks . | . . . . Combat Hostiles . | . . . . Follow-up Attacks . | . . . . Damage Inflicted 1703 | 91 679 353 580 Guns 1089 | 91 498 353 147 Cannons 433 | . . . 433 Explosions 167 | . 167 . . Melee . | . . . . Ramming 14 | . 14 . . Kinetic 420 | . 7 140 273 Thermal 1010 | 51 439 213 307 Explosive . | . . . . Electromagnetic 259 | 40 219 . . Impact . | . . . . Slashing . | . . . . Piercing . | . . . . Highest Corruption 6 | . 1 1 6 Average Corruption 1 | . 1 1 4 Corruption Purged . | . . . . Corruption Blocked . | . . . . Effects 29 | . 12 10 7 Message Errors 5 | . 3 1 1 Matter Fused 6 | . 2 2 2 Heat Flow Errors 5 | . . 2 3 Energy Discharges 2 | . . 1 1 Parts Fused 1 | . 1 . . Data Loss (minor) 2 | . 2 . . Data Loss (major) 1 | . 1 . . Misfires 6 | . 2 4 . Alerts 1 | . 1 . . Overload Shots . | . . . . Overflow Damage 12 | . 12 . . Projectiles . | . . . . Explosions 12 | . 12 . . Melee . | . . . . Knockbacks 5 | . 1 . 4 Impact 1 | . 1 . . Kinetic 4 | . . . 4 Secondary . | . . . . Self-Inflicted Damage 58 | . 58 . . Shots 2 | . 2 . . Rammed 5 | . 4 1 . Targets Rammed 5 | . 4 1 . Kicked . | . . . . Crushed . | . . . . Highest Temperature 312 | 180 312 176 218 Average Temperature 59 | 82 61 59 34 Received Heat Transfer 267 | . . 60 207 Effects 1 | . 1 . . Energy Bleed 1 | . 1 . . Siege Activations . | . . . . Robots Corrupted . | . . . . Combat Hostiles . | . . . . Parts Fried . | . . . . Impact Corruptions . | . . . . Robots Melted 1 | . . . 1 Combat Hostiles 1 | . . . 1 Parts Melted 7 | . . 4 3 Heat Transferred 2629 | 148 1112 851 518 Parts Sabotaged . | . . . . Parts Stolen . | . . . . Parts Stripped . | . . . . Power Chain Reactions 4 | . 4 . . Alert | -11 -10 -10 -10 ------- Run | Yrd Mat Min Sub Peak Influence 284 | 15 284 179 . Initial 39 | . 9 39 . Average 124 | 8 135 119 . Maximum Alert Level 1 | . 1 . . Low Security (%) 86 | 100 78 100 . Level 1 13 | . 21 . . Level 2 . | . . . . Level 3 . | . . . . Level 4 . | . . . . Level 5 . | . . . . High Security . | . . . . Max Security . | . . . . Squads Dispatched . | . . . . Investigation . | . . . . Extermination . | . . . . Reinforcement . | . . . . Assault . | . . . . Garrison . | . . . . Intercept . | . . . . Searches Triggered . | . . . . Construction Impeded . | . . . . Haulers Reinforced . | . . . . Active Scanning Responses . | . . . . Cargo Convoy Interrupts . | . . . . Stealth | -11 -10 -10 -10 --------- Run | Yrd Mat Min Sub Distress Signals 2 | . 1 1 . Communications Jammed . | . . . . Distress Signals . | . . . . Times Spotted 45 | . 22 14 9 Peak Tracking Total 6 | . 6 3 4 Tactical Retreats 5 | . 1 2 2 Traps | -11 -10 -10 -10 ------- Run | Yrd Mat Min Sub Traps Triggered 1 | . 1 . . Indirectly . | . . . . Trap Hack Attempts . | . . . . Triggered . | . . . . Disarmed . | . . . . Reprogrammed . | . . . . Reused . | . . . . Traps Extracted . | . . . . Installed . | . . . . Triggered . | . . . . Machines | -11 -10 -10 -10 ---------- Run | Yrd Mat Min Sub Machines Disabled 3 | . 3 . . Max in Single Turn 1 | . 1 . . Machines Repaired . | . . . . Machines Dismantled . | . . . . Machines Sabotaged . | . . . . Overloaded Fab Kills . | . . . . Hacking | -11 -10 -10 -10 --------- Run | Yrd Mat Min Sub Machines Accessed 12 | . 11 . 1 Terminals 8 | . 8 . . Fabricators . | . . . . Repair Stations 1 | . 1 . . Recycling Units 2 | . 2 . . Scanalyzers . | . . . . Garrison Access . | . . . . Total Hacks 31 | . 26 . 5 Successful 23 | . 18 . 5 Failed 8 | . 8 . . Catastrophic 2 | . 2 . . Database Lockouts . | . . . . Manual 10 | . 10 . . Terminals 20 | . 20 . . Fabricators . | . . . . Repair Stations 2 | . 2 . . Recycling Units 4 | . 4 . . Scanalyzers . | . . . . Garrison Access . | . . . . Terminal Hacks 15 | . 10 . 5 Record 5 | . . . 5 Part Schematic 1 | . 1 . . Prototype ID Bank 2 | . 2 . . Terminal Index 1 | . 1 . . Locate Traps 2 | . 2 . . Maintenance Status 1 | . 1 . . Registered Components 1 | . 1 . . Zone Layout 2 | . 2 . . Fabricator Hacks . | . . . . Repair Station Hacks 1 | . 1 . . Scan Component 1 | . 1 . . Recycling Unit Hacks 1 | . 1 . . Retrieve Components 1 | . 1 . . Scanalyzer . | . . . . Garrison Access Hacks . | . . . . Unauthorized Hacks 6 | . 6 . . Terminals 6 | . 6 . . Track 1 | . 1 . . Skim 5 | . 5 . . Fabricators . | . . . . Repair Stations . | . . . . Recycling Units . | . . . . Scanalyzers . | . . . . Garrison Access . | . . . . Data Cores Recovered 1 | . 1 . . Used 1 | . 1 . . Hacking Detections 10 | . 10 . . Full Trace Events . | . . . . Feedback Events . | . . . . Feedback Blocked . | . . . . Robot Schematics Acquired . | . . . . Robots Built . | . . . . Authchips . | . . . . Time . | . . . . Total Robot Build Rating . | . . . . Part Schematics Acquired 1 | . 1 . . Parts Built . | . . . . Authchips . | . . . . Time . | . . . . Total Part Build Rating . | . . . . Parts Repaired . | . . . . Time . | . . . . Parts Recycled . | . . . . Recycled Matter . | . . . . Retrieved Matter . | . . . . Retrieved Components 2 | . 2 . . Parts Scanalyzed . | . . . . Part Schematics Acquired . | . . . . Parts Damaged . | . . . . Bothacking | -11 -10 -10 -10 ------------ Run | Yrd Mat Min Sub Used RIF Installer . | . . . . Robots Hacked . | . . . . Non-combat . | . . . . Combat . | . . . . Robot Hacks Applied . | . . . . Relay Couplers Released . | . . . . Fabnet Peak Effective % . | . . . . Robots Rewired . | . . . . Allies Hacked . | . . . . Hacks Repelled . | . . . . Allies | -11 -10 -10 -10 -------- Run | Yrd Mat Min Sub Total Allies . | . . . . Largest Group . | . . . . Highest-Rated Group . | . . . . Highest-Rated Ally . | . . . . Total Orders . | . . . . Ally Attacks . | . . . . Total Damage . | . . . . Kills . | . . . . Allies Corrupted . | . . . . Allies Melted . | . . . . Intel | -11 -10 -10 -10 ------- Run | Yrd Mat Min Sub Robot Analysis Total . | . . . . Derelict Logs Recovered 2 | . . 2 . Drone Launches . | . . . . Drone Recoveries . | . . . . Exploration | -11 -10 -10 -10 ------------- Run | Yrd Mat Min Sub Turns Passed 3122 | 112 1571 812 627 Spaces Moved 1710 | 67 876 440 327 Core . | . . . . Treads 1653 | 12 876 440 325 Legs 55 | 55 . . . Wheels 2 | . . . 2 Hover . | . . . . Flight . | . . . . Fastest Speed 95 | 120 160 160 95 Average Speed 158 | 127 160 160 159 Slowest Speed 160 | 160 160 160 160 Overloaded Moves . | . . . . Propulsion Burnouts . | . . . . Robots Hopped . | . . . . Cave-ins Triggered . | . . . . Exploration Rate (%) 52 | 3 96 89 21 Regions Visited 3 Branch Regions 2 Pre-discovered Areas 2 | . 1 1 . Known Exits Taken 1 | . 1 . . Unknown Exits Taken 2 | 1 . 1 . Scrap Searched 4 | . . 1 3 Spaces Dug 8 | . 8 . . Terrain Destroyed 31 | . 27 . 4 Melee . | . . . . Projectile 12 | . 8 . 4 AOE 19 | . 19 . . Terrain Rammed . | . . . . Walls Destroyed . | . . . . Machines Disabled . | . . . . Actions | -11 -10 -10 -10 --------- Run | Yrd Mat Min Sub Total 1892 | 78 944 494 376 Wait 18 | . . 17 1 Move 1707 | 66 875 439 327 Hop . | . . . . Pick Up 14 | 2 5 1 6 Fast Attach 3 | 1 1 1 . Attach 6 | . . 1 5 Detach . | . . . . Swap 12 | 2 6 2 2 Drop 10 | . 7 2 1 Fire 117 | 7 46 30 34 Melee . | . . . . Ram . | . . . . Kick . | . . . . Crush 5 | . 4 1 . Escape Stasis . | . . . . Rewire . | . . . . Trap . | . . . . Miscellaneous . | . . . . Route ------- -11/Scrapyard -10/Materials (discovered 5 exits: *Mat x3 / *Min x2) -10/Mines (discovered 4 exits: *Mat x2 / [Exi] / *Sub) -10/Subcaves (discovered 1 exit: Mat) History --------- Turn | Location | Event 1 | -11/Scrapyard | Discovered new exit (range 3) 113 | -11/Scrapyard | Entered Materials 257 | -10/Materials | Discovered new exit (range 13) 315 | -10/Materials | Build established: Mutant 556 | -10/Materials | Learned location of 1 exit from Recycling 600 | -10/Materials | Identified exit to Materials 632 | -10/Materials | Identified exit to Mines 660 | -10/Materials | Learned 4 Recycling zone layouts 703 | -10/Materials | Learned location of 1 exit from Storage 1684 | -10/Materials | Entered Mines 2124 | -10/Mines | Received a Rocket Launcher from a helpful Derelict 2414 | -10/Mines | Learned Materials stockpile data 2445 | -10/Mines | Deemed a non-threat by the Exiles lab entrance 2457 | -10/Mines | Discovered new exit (range 9) 2469 | -10/Mines | Discovered new exit (range 10) 2496 | -10/Mines | Entered Subcaves 2497 | -10/Subcaves | Identified exit to Materials 2736 | -10/Subcaves | Core integrity fell below 50% 2779 | -10/Subcaves | Core integrity fell below 20% 2798 | -10/Subcaves | Lost 6 parts (1p2n1u2w) 2889 | -10/Subcaves | Visited Clippyterm 2894 | -10/Subcaves | Learned Factory trap positions 2894 | -10/Subcaves | Learned 40 Factory zone layouts 3123 | -10/Subcaves | Destroyed by Autobeam Turret with Autobeam Last Messages --------------- recommend taking subatomizers out of the Subcaves, I can warn that doing so is a one-way ticket to summoning unimaginable chaos on any area not hardened against them. That includes... just about anywhere. 02935_ System corrupted: Matter fused (-10). 02965_ Subatomizers dissect the Sub. Power Source. 02966_ System corrupted: Heat flow error (+257). 02973_ Acquired 10 matter. 02976_ Subatomizers dissect the Sub. Power Source. 03032_ K|BD5XH4XE9T4PQT3&MIIKI 03074_ Subatomizers dissect the Sub. Monowheel. 03082_ System corrupted: Heat flow error (+101). 03086_ Acquired Dirty Datajack. 03089_ Acquired Sub. Monowheel. 03091_ Acquired Sub. Power Source. 03094_ Acquired Scrap Shield Fragment. 03101_ Lgt. Treads destroyed. 03106_ S-10 Pest destroyed. 03113_ Lgt. Assault Rifle fries itself beyond repair. 03116_ Acquired 10 matter. 03117_ Lgt. Ion Engine fries itself beyond repair. Map ----- +----------------------------------------------------+ | ?????????????????????????????????????????????????? | | ?????????????????????????????????????????????????? | | ?????????????????????????????????????????????????? | | ?????????????????????????????????????????????????? | | ?????????????????????????????????????????????????? | | ?????????????????????????????????????????????????? | | ?????????????????????????????????????????????????? | | ?????????????????????????????????????????????????? | | ?????????????????????????????????????????????????? | | ?????????????????????????????????????????????????? | | ??????????????????????????????????????????? ?????? | | ?????????????????????????????????????????????????? | | ???????????????????????????????????????#?????????? | | ????????????????????????????????????### ?????????? | | ???????????????????????????????????## ?????????? | | ???????????????###?????????? ????# ?????????? | | ?????????????###;;#???????? ???# ??#??????? | | ?????????????#""" "??????? ??# ##???????? | | ?????????????#" ##???? ??# ##??????? | | ??????????????" # ###? ?# ??????? | | ?????????????#""t ## ## #??????? | | ??????????????? % #? #??????? | | ?????????????????? % #???# #????#?? | | ????????????????????#=* #???# #??????? | | ?????????????????????#% [##### #??????? | | ????????????????????## %@" ### #???????? | | ???????????????????## ## ##??#????? | | ???????????????????# """##% ## " # ##???????? | | ???????????????????# ##" ## " ?# #?????#?? | | ???????????????????##" "" ### ##?# #???????? | | ????????????????????## "" # ### #???#??#? | | ?????????????????????### " "" ## ###????#?? | | ???????????????????????## """ ##?## ##?#???? | | ????????????????????????## ###### ##?##?? | | ?????????????????????#??## #???# ## ## ##? | | ??????????????????????### #??## ### #? | | ?????????????????????##" """ ##### ### ### | | ????????????????????##" """ # # | | ???????????????????##" """ | | ??????????????????## " " | | ???????????#??????# ## ### | | ??????????????????## ### ####### #? | | ?????#???#?????????### ##?### ###???## ## | | ????????????????#???### ##?### ##??????# | | ???????????????????## ## ### ##?#?????# | | ???????????????##### ## ####??#??#?### | | ????????????#### # ###?????#??????### | | ???????????## #####???#?????????? | | ???????????# ### #????#?#??????? | | ???????????## # ### #?????????????? | +----------------------------------------------------+ Best States ------------- Heat Dissipation 25 Energy Generation 14 Energy Capacity 250 Matter Stores 300 Matter Capacity 300 Sight Range 16 Terrain Scan Range 16 Terrain Scan Density 10 Armor Coverage 150 Evasion (%) 55 Recoil Reduction 2 Item Schematics ----------------- Huge Storage Unit | -10/Materials | Hacked Robot Schematics ------------------ None Fabricated ------------ Nothing Alien Tech Used ----------------- None Achievements -------------- None Challenges ------------ None Game ------ Seed MatterLargeScrapsphere Manual? 0 Play Time 00:19:28 Cumulative 252.4 hours Start 2024.10.10 @ 21:02:02 End 2024.10.11 @ 16:17:44 Sessions 6 Manual Loads 0 Difficulty Rogue Special Mode None Game No. 150 Rogue 150 Adventurer 0 Explorer 0 Win Type - Total 12 Types 3/1/5/1/1/0/1/0/0 Lore% 76 Gallery% 78 Achievement% 69 Wizard Run 0 Options --------- Layout 0 ASCII 0 Keyboard 0 Movement Arrows Keybinds 0 Fullscreen 2 Font 18/SmallcapsGlow Map View 76x50 Zoom Use 0% Tactical HUD 1 Map Filters NONE Filters NONE Steam 1 RUN: 244483a1-7893-4763-b9cb-ee37da79b629